[Event "*** SCC Grand Prix: Titled Tuesday Blitz"]
[Site "Chess.com"]
[Date "2020.06.23"]
[Round "2"]
[White "Chess_Boxer123"]
[Black "ArnieChipmunk"]
[Result "1-0"]
[WhiteElo "2727"]
[BlackElo "2338"]
[TimeControl "180+1"]
[EndTime "10:18:30 PDT"]
[Termination "Chess_Boxer123 won by resignation"]

1. d4 {[%clk 0:02:59.3]} 1... d5 {[%clk 0:02:59.1]} 2. c4 {[%clk 0:02:58.9]}
2... e6 {[%clk 0:02:59.3]} 3. Nc3 {[%clk 0:02:58.9]} 3... Nf6 {[%clk 0:02:59.5]}
4. cxd5 {[%clk 0:02:58.3]} 4... Nxd5 {[%clk 0:02:59.2]} 5. e4 {[%clk 0:02:58.4]}
5... Nxc3 {[%clk 0:02:59]} 6. bxc3 {[%clk 0:02:59.3]} 6... c5 {[%clk 0:02:58.6]}
7. Nf3 {[%clk 0:02:59.9]} 7... cxd4 {[%clk 0:02:58.4]} 8. cxd4 {[%clk
0:03:00.8]} 8... Bb4+ {[%clk 0:02:58.3]} 9. Bd2 {[%clk 0:03:01.4]} 9... Bxd2+
{[%clk 0:02:58.6]} 10. Qxd2 {[%clk 0:03:02.3]} 10... O-O {[%clk 0:02:58.7]} 11.
Bc4 {[%clk 0:03:02.9]} 11... b6 {[%clk 0:02:58.2]} 12. O-O {[%clk 0:03:02.7]}
12... Bb7 {[%clk 0:02:58.8]} 13. Rfe1 {[%clk 0:03:03.2]} 13... Nd7 {[%clk
0:02:58.8]} 14. Rad1 {[%clk 0:03:03.7]} 14... Rc8 {[%clk 0:02:58.6]} 15. Bb3
{[%clk 0:03:04.2]} 15... Nf6 {[%clk 0:02:58.7]} 16. Qf4 {[%clk 0:03:03]} 16...
Qc7 {[%clk 0:02:41.5]} 17. Qh4 {[%clk 0:02:59]} 17... Rfd8 {[%clk 0:02:19.6]}
18. Ng5 {[%clk 0:02:43.9]} 18... h6 {[%clk 0:02:11.3]} 19. Nxe6 {[%clk
0:02:42.8]} 19... fxe6 {[%clk 0:02:11.5]} 20. Bxe6+ {[%clk 0:02:43.7]} 20... Kh8
{[%clk 0:02:07.8]} 21. Bxc8 {[%clk 0:02:43.8]} 21... Qxc8 {[%clk 0:01:57.7]} 22.
d5 {[%clk 0:02:43.2]} 22... Re8 {[%clk 0:01:48.9]} 23. f3 {[%clk 0:02:40.4]}
23... Qc3 {[%clk 0:01:37]} 24. Rc1 {[%clk 0:02:35.5]} 24... Qd4+ {[%clk
0:01:29.3]} 25. Qf2 {[%clk 0:02:35.2]} 25... Qb4 {[%clk 0:01:24.3]} 26. Red1
{[%clk 0:02:30.4]} 26... Nd7 {[%clk 0:00:45.5]} 27. Qd4 {[%clk 0:02:00.1]} 27...
Qd6 {[%clk 0:00:41.4]} 28. Re1 {[%clk 0:01:25]} 28... Ne5 {[%clk 0:00:34.5]} 29.
f4 {[%clk 0:01:02.6]} 29... Nc6 {[%clk 0:00:34.2]} 30. Qf2 {[%clk 0:00:57.5]}
30... Nb4 {[%clk 0:00:27]} 31. Rcd1 {[%clk 0:00:57.8]} 31... Ba6 {[%clk
0:00:24.8]} 32. e5 {[%clk 0:00:56.6]} 32... Qf8 {[%clk 0:00:23]} 33. d6 {[%clk
0:00:39.1]} 33... Nd3 {[%clk 0:00:22.2]} 34. Rxd3 {[%clk 0:00:39.2]} 34... Bxd3
{[%clk 0:00:23.1]} 35. Qd4 {[%clk 0:00:29.6]} 35... Bb5 {[%clk 0:00:20.3]} 36.
e6 {[%clk 0:00:30]} 36... Qf5 {[%clk 0:00:14.7]} 37. d7 {[%clk 0:00:28.8]} 37...
Rd8 {[%clk 0:00:14]} 38. e7 {[%clk 0:00:26.7]} 38... Rxd7 {[%clk 0:00:14.2]} 39.
e8=Q+ {[%clk 0:00:26.9]} 39... Kh7 {[%clk 0:00:14.5]} 40. Qde4 {[%clk
0:00:27.4]} 1-0

[Event "*** SCC Grand Prix: Titled Tuesday Blitz"]
[Site "Chess.com"]
[Date "2020.06.23"]
[Round "2"]
[White "KaterynaLagno"]
[Black "MasterKroket"]
[Result "1-0"]
[WhiteElo "2679"]
[BlackElo "2420"]
[TimeControl "180+1"]
[EndTime "10:18:31 PDT"]
[Termination "KaterynaLagno won by resignation"]

1. e4 {[%clk 0:03:00.9]} 1... c5 {[%clk 0:03:00.1]} 2. Nf3 {[%clk 0:03:00.8]}
2... e6 {[%clk 0:03:00.6]} 3. d4 {[%clk 0:03:00]} 3... cxd4 {[%clk 0:03:01.5]}
4. Nxd4 {[%clk 0:03:00.5]} 4... Nc6 {[%clk 0:03:02.1]} 5. Nc3 {[%clk 0:03:01]}
5... Qc7 {[%clk 0:03:02.5]} 6. Be2 {[%clk 0:02:59.4]} 6... a6 {[%clk 0:03:02]}
7. Be3 {[%clk 0:02:59.1]} 7... Nf6 {[%clk 0:03:02.3]} 8. O-O {[%clk 0:02:58.8]}
8... Bb4 {[%clk 0:03:02.3]} 9. Na4 {[%clk 0:02:59.4]} 9... O-O {[%clk
0:03:01.8]} 10. c4 {[%clk 0:02:56.8]} 10... Bd6 {[%clk 0:03:00.8]} 11. g3 {[%clk
0:02:48.2]} 11... Nxe4 {[%clk 0:02:56.3]} 12. Bf3 {[%clk 0:02:46.7]} 12... f5
{[%clk 0:02:53.7]} 13. Rc1 {[%clk 0:02:43.5]} 13... Ne5 {[%clk 0:02:33.1]} 14.
c5 {[%clk 0:02:19.7]} 14... Be7 {[%clk 0:02:27.3]} 15. Nb6 {[%clk 0:02:15.7]}
15... Rb8 {[%clk 0:02:24.8]} 16. Bg2 {[%clk 0:01:53.1]} 16... Ng4 {[%clk
0:02:03]} 17. Bf4 {[%clk 0:01:51.6]} 17... e5 {[%clk 0:02:03.5]} 18. Nxf5 {[%clk
0:01:49.7]} 18... Rxf5 {[%clk 0:01:41]} 19. Qxg4 {[%clk 0:01:47.6]} 19... Rxf4
{[%clk 0:01:12.1]} 20. gxf4 {[%clk 0:01:46.3]} 20... d5 {[%clk 0:01:07.2]} 21.
Nxc8 {[%clk 0:01:02.2]} 21... Rxc8 {[%clk 0:01:03]} 22. Qe6+ {[%clk 0:01:01.5]}
22... Kh8 {[%clk 0:01:00.1]} 23. Qxd5 {[%clk 0:01:01.7]} 23... Nf6 {[%clk
0:00:42.4]} 24. Qxb7 {[%clk 0:01:01.5]} 24... exf4 {[%clk 0:00:37.7]} 25. Qxc7
{[%clk 0:01:00.3]} 25... Rxc7 {[%clk 0:00:38.6]} 26. c6 {[%clk 0:00:59.4]} 26...
g5 {[%clk 0:00:36.8]} 27. Rfe1 {[%clk 0:00:59.2]} 27... Bb4 {[%clk 0:00:32.5]}
28. Red1 {[%clk 0:00:51]} 28... g4 {[%clk 0:00:30]} 29. a3 {[%clk 0:00:49.5]}
29... Bf8 {[%clk 0:00:26]} 30. Rd8 {[%clk 0:00:47.2]} 30... Kg7 {[%clk
0:00:23.9]} 31. Rb8 {[%clk 0:00:47.5]} 31... f3 {[%clk 0:00:22.6]} 32. Rb7
{[%clk 0:00:48.1]} 32... Bd6 {[%clk 0:00:18.2]} 33. Rd1 {[%clk 0:00:46.5]} 33...
Be5 {[%clk 0:00:10.9]} 34. Bf1 {[%clk 0:00:45.8]} 34... Kf7 {[%clk 0:00:07.4]}
35. Bxa6 {[%clk 0:00:43.7]} 35... Ke7 {[%clk 0:00:07.6]} 36. b4 {[%clk
0:00:41.6]} 36... Nh5 {[%clk 0:00:07.5]} 37. b5 {[%clk 0:00:40.6]} 37... Nf4
{[%clk 0:00:08]} 38. b6 {[%clk 0:00:39]} 38... Rxb7 {[%clk 0:00:08.4]} 39. cxb7
{[%clk 0:00:39.3]} 39... Nh3+ {[%clk 0:00:07.8]} 40. Kf1 {[%clk 0:00:38.3]}
40... Bxh2 {[%clk 0:00:07.1]} 41. Rc1 {[%clk 0:00:34.1]} 41... h5 {[%clk
0:00:04.7]} 42. Rc7+ {[%clk 0:00:32.9]} 42... Bxc7 {[%clk 0:00:03.2]} 43. bxc7
{[%clk 0:00:33.8]} 1-0

[Event "*** SCC Grand Prix: Titled Tuesday Blitz"]
[Site "Chess.com"]
[Date "2020.06.23"]
[Round "2"]
[White "PattyCastillo"]
[Black "chenxiaoyuer"]
[Result "0-1"]
[WhiteElo "1914"]
[BlackElo "2367"]
[TimeControl "180+1"]
[EndTime "10:18:31 PDT"]
[Termination "chenxiaoyuer won on time"]

1. d4 {[%clk 0:03:00.9]} 1... Nf6 {[%clk 0:02:59.1]} 2. Nf3 {[%clk 0:02:59.5]}
2... g6 {[%clk 0:02:58.7]} 3. Nc3 {[%clk 0:02:58.2]} 3... d5 {[%clk 0:02:57.4]}
4. Bf4 {[%clk 0:02:57.8]} 4... Bg7 {[%clk 0:02:56.8]} 5. e3 {[%clk 0:02:57.7]}
5... O-O {[%clk 0:02:48.6]} 6. Be2 {[%clk 0:02:57]} 6... Bg4 {[%clk 0:02:44.5]}
7. Ne5 {[%clk 0:02:56.5]} 7... Bxe2 {[%clk 0:02:40.1]} 8. Qxe2 {[%clk
0:02:57.4]} 8... Nbd7 {[%clk 0:02:38.2]} 9. h4 {[%clk 0:02:55.9]} 9... c5 {[%clk
0:02:29.4]} 10. h5 {[%clk 0:02:54.4]} 10... cxd4 {[%clk 0:02:27.7]} 11. exd4
{[%clk 0:02:55.3]} 11... Nxh5 {[%clk 0:01:49.1]} 12. Rxh5 {[%clk 0:02:48]} 12...
gxh5 {[%clk 0:01:47.5]} 13. Qxh5 {[%clk 0:02:38.6]} 13... Nxe5 {[%clk
0:01:38.7]} 14. Bxe5 {[%clk 0:02:33.3]} 14... f6 {[%clk 0:01:36.4]} 15. Bf4
{[%clk 0:02:24.9]} 15... e6 {[%clk 0:01:33.5]} 16. O-O-O {[%clk 0:02:17]} 16...
Qe8 {[%clk 0:01:30.9]} 17. Qg4 {[%clk 0:01:56]} 17... Kh8 {[%clk 0:01:09.7]} 18.
Rh1 {[%clk 0:01:54.4]} 18... f5 {[%clk 0:01:04.1]} 19. Qh3 {[%clk 0:01:20.4]}
19... Qg6 {[%clk 0:01:03.1]} 20. Be5 {[%clk 0:00:40.7]} 20... Bxe5 {[%clk
0:01:00.7]} 21. dxe5 {[%clk 0:00:41.6]} 21... Qg7 {[%clk 0:00:46.7]} 22. f4
{[%clk 0:00:38.2]} 22... a6 {[%clk 0:00:43.2]} 23. Ne2 {[%clk 0:00:31]} 23...
Rae8 {[%clk 0:00:36.6]} 24. Nd4 {[%clk 0:00:28.8]} 24... Re7 {[%clk 0:00:23.8]}
25. Nf3 {[%clk 0:00:20.9]} 25... Kg8 {[%clk 0:00:21.5]} 26. Ng5 {[%clk
0:00:18.6]} 26... Qg6 {[%clk 0:00:19.2]} 27. Qb3 {[%clk 0:00:15.1]} 27... h6
{[%clk 0:00:11.8]} 28. Nf3 {[%clk 0:00:11.5]} 28... Rh7 {[%clk 0:00:08.5]} 29.
a4 {[%clk 0:00:09.7]} 29... Qg4 {[%clk 0:00:08.1]} 30. Rg1 {[%clk 0:00:07]}
30... Qxf4+ {[%clk 0:00:07.4]} 31. Kb1 {[%clk 0:00:06.9]} 31... Qe4 {[%clk
0:00:06.9]} 32. g4 {[%clk 0:00:04.4]} 32... fxg4 {[%clk 0:00:06.3]} 0-1

[Event "*** SCC Grand Prix: Titled Tuesday Blitz"]
[Site "Chess.com"]
[Date "2020.06.23"]
[Round "2"]
[White "GregShahade"]
[Black "Guenplen"]
[Result "0-1"]
[WhiteElo "2576"]
[BlackElo "2924"]
[TimeControl "180+1"]
[EndTime "10:18:32 PDT"]
[Termination "Guenplen won by resignation"]

1. e4 {[%clk 0:03:00.9]} 1... c5 {[%clk 0:02:59.8]} 2. Nf3 {[%clk 0:03:00.6]}
2... e6 {[%clk 0:03:00.1]} 3. d4 {[%clk 0:03:01.2]} 3... cxd4 {[%clk 0:03:01]}
4. Nxd4 {[%clk 0:03:01.6]} 4... Nf6 {[%clk 0:03:01.6]} 5. Nc3 {[%clk 0:03:01.9]}
5... Nc6 {[%clk 0:03:02.1]} 6. Nxc6 {[%clk 0:02:59.6]} 6... bxc6 {[%clk
0:03:03]} 7. e5 {[%clk 0:02:59.8]} 7... Nd5 {[%clk 0:03:03.2]} 8. Ne4 {[%clk
0:03:00.3]} 8... Bb7 {[%clk 0:03:03.5]} 9. c4 {[%clk 0:02:56.3]} 9... Nb4 {[%clk
0:03:01.6]} 10. a3 {[%clk 0:02:51.2]} 10... Qa5 {[%clk 0:03:00.9]} 11. Bd2
{[%clk 0:02:24.5]} 11... Qxe5 {[%clk 0:02:59.3]} 12. axb4 {[%clk 0:01:24.8]}
12... Qxe4+ {[%clk 0:02:58.6]} 13. Qe2 {[%clk 0:01:24.7]} 13... Qxe2+ {[%clk
0:02:51.6]} 14. Bxe2 {[%clk 0:01:25.6]} 14... c5 {[%clk 0:02:52.5]} 15. b5
{[%clk 0:01:24.3]} 15... Bxg2 {[%clk 0:02:49.4]} 16. Rg1 {[%clk 0:01:23.3]}
16... Bb7 {[%clk 0:02:49.6]} 17. Be3 {[%clk 0:01:21.4]} 17... d5 {[%clk
0:02:36.3]} 18. cxd5 {[%clk 0:01:19.9]} 18... exd5 {[%clk 0:02:34.2]} 19. O-O-O
{[%clk 0:01:20.5]} 19... d4 {[%clk 0:02:26.2]} 20. Bf4 {[%clk 0:01:17.3]} 20...
f5 {[%clk 0:02:16.1]} 21. Bc4 {[%clk 0:01:15.9]} 21... Kd7 {[%clk 0:02:07.8]}
22. Rde1 {[%clk 0:01:14.3]} 22... Re8 {[%clk 0:01:56.9]} 23. Rxe8 {[%clk
0:01:13.1]} 23... Kxe8 {[%clk 0:01:57.8]} 24. Re1+ {[%clk 0:01:13.2]} 24... Kd7
{[%clk 0:01:55.7]} 25. Be6+ {[%clk 0:01:06.7]} 25... Kd8 {[%clk 0:01:55.8]} 26.
Bxf5 {[%clk 0:00:51.9]} 26... Be7 {[%clk 0:01:55.5]} 27. Bc7+ {[%clk 0:00:46.9]}
27... Kxc7 {[%clk 0:01:52.2]} 28. Rxe7+ {[%clk 0:00:46.8]} 28... Kb6 {[%clk
0:01:53.1]} 29. Rxg7 {[%clk 0:00:46.8]} 29... Rf8 {[%clk 0:01:52.6]} 30. Bd3
{[%clk 0:00:41.5]} 30... Rxf2 {[%clk 0:01:41.9]} 31. Rxh7 {[%clk 0:00:41.6]}
31... Bd5 {[%clk 0:01:39.1]} 32. Rh6+ {[%clk 0:00:40.8]} 32... Kc7 {[%clk
0:01:15.3]} 33. Rh7+ {[%clk 0:00:40.9]} 33... Kb6 {[%clk 0:01:13]} 34. Rh6+
{[%clk 0:00:41.1]} 34... Ka5 {[%clk 0:01:12.2]} 35. Ra6+ {[%clk 0:00:37]} 35...
Kb4 {[%clk 0:01:11.7]} 36. Rxa7 {[%clk 0:00:36.8]} 36... c4 {[%clk 0:01:09.2]}
37. Bc2 {[%clk 0:00:29.8]} 37... Kxb5 {[%clk 0:00:56.6]} 38. h4 {[%clk
0:00:21.1]} 38... Rh2 {[%clk 0:00:56.1]} 39. Rd7 {[%clk 0:00:15]} 39... Kc5
{[%clk 0:00:53.2]} 40. Rc7+ {[%clk 0:00:14.7]} 40... Kd6 {[%clk 0:00:52.6]} 41.
Rc8 {[%clk 0:00:11.4]} 41... Rxh4 {[%clk 0:00:48.1]} 42. Kb1 {[%clk 0:00:10.7]}
42... Rh1+ {[%clk 0:00:42.9]} 43. Ka2 {[%clk 0:00:10.9]} 43... d3 {[%clk
0:00:43.4]} 44. Ba4 {[%clk 0:00:08.9]} 44... c3+ {[%clk 0:00:41.5]} 45. Bb3
{[%clk 0:00:05.4]} 45... Bxb3+ {[%clk 0:00:40.3]} 46. Kxb3 {[%clk 0:00:05.5]}
46... c2 {[%clk 0:00:41]} 47. Rd8+ {[%clk 0:00:05.9]} 47... Ke7 {[%clk
0:00:40.1]} 48. Rxd3 {[%clk 0:00:06.8]} 48... c1=Q {[%clk 0:00:39.7]} 0-1

[Event "*** SCC Grand Prix: Titled Tuesday Blitz"]
[Site "Chess.com"]
[Date "2020.06.23"]
[Round "2"]
[White "TimKett"]
[Black "JozefKneht"]
[Result "0-1"]
[WhiteElo "2200"]
[BlackElo "2439"]
[TimeControl "180+1"]
[EndTime "10:18:33 PDT"]
[Termination "JozefKneht won by resignation"]

1. e4 {[%clk 0:03:00.9]} 1... e5 {[%clk 0:02:59.6]} 2. f4 {[%clk 0:02:55.7]}
2... exf4 {[%clk 0:02:58.9]} 3. Nf3 {[%clk 0:02:55.5]} 3... g5 {[%clk 0:02:58]}
4. Nc3 {[%clk 0:02:52.6]} 4... Bg7 {[%clk 0:02:57.3]} 5. d4 {[%clk 0:02:47.6]}
5... d6 {[%clk 0:02:53.7]} 6. g3 {[%clk 0:02:47.1]} 6... g4 {[%clk 0:02:47.1]}
7. Nh4 {[%clk 0:02:46.8]} 7... f3 {[%clk 0:02:46.7]} 8. Be3 {[%clk 0:02:35.7]}
8... Nc6 {[%clk 0:02:43.8]} 9. Qd2 {[%clk 0:02:35.4]} 9... h5 {[%clk 0:02:41.6]}
10. O-O-O {[%clk 0:02:30.2]} 10... Bd7 {[%clk 0:02:39]} 11. h3 {[%clk
0:02:21.4]} 11... Nce7 {[%clk 0:02:30.4]} 12. hxg4 {[%clk 0:02:10.7]} 12... hxg4
{[%clk 0:02:29.5]} 13. Bc4 {[%clk 0:02:05.2]} 13... c6 {[%clk 0:02:26.9]} 14.
Bg5 {[%clk 0:01:41.7]} 14... b5 {[%clk 0:02:21.1]} 15. Bb3 {[%clk 0:01:33.4]}
15... a5 {[%clk 0:02:10.3]} 16. Qf4 {[%clk 0:01:29.4]} 16... f6 {[%clk
0:02:00.9]} 17. e5 {[%clk 0:01:18.3]} 17... d5 {[%clk 0:01:37.4]} 18. exf6
{[%clk 0:01:17.5]} 18... Nxf6 {[%clk 0:01:32.3]} 19. Bxf6 {[%clk 0:01:15.3]}
19... Rf8 {[%clk 0:01:31]} 20. Bxe7 {[%clk 0:01:09.9]} 20... Qxe7 {[%clk
0:01:28.9]} 21. Qd2 {[%clk 0:01:03.4]} 21... Qd6 {[%clk 0:01:14.9]} 22. Rhe1+
{[%clk 0:00:59.1]} 22... Kd8 {[%clk 0:01:15]} 23. Qd3 {[%clk 0:00:49.1]} 23...
a4 {[%clk 0:01:07.8]} 24. Bxd5 {[%clk 0:00:43]} 24... cxd5 {[%clk 0:01:04.7]}
25. Nxb5 {[%clk 0:00:42.7]} 25... Qxg3 {[%clk 0:00:47.9]} 26. Ng6 {[%clk
0:00:42.6]} 26... Rf6 {[%clk 0:00:42.4]} 27. Ne5 {[%clk 0:00:41.8]} 27... Qf4+
{[%clk 0:00:38.5]} 28. Kb1 {[%clk 0:00:41.2]} 28... f2 {[%clk 0:00:38.3]} 29.
Rf1 {[%clk 0:00:32.5]} 29... g3 {[%clk 0:00:37.7]} 30. Nxd7 {[%clk 0:00:32]}
30... Kxd7 {[%clk 0:00:37.7]} 31. Nc3 {[%clk 0:00:29.5]} 31... Qd6 {[%clk
0:00:26.7]} 32. Nb5 {[%clk 0:00:23.7]} 32... Qb8 {[%clk 0:00:20.7]} 33. Qh7
{[%clk 0:00:23]} 33... Rf7 {[%clk 0:00:19.6]} 34. Qh3+ {[%clk 0:00:22.1]} 34...
Ke7 {[%clk 0:00:18.6]} 35. Rde1+ {[%clk 0:00:19.8]} 35... fxe1=Q+ {[%clk
0:00:17.3]} 36. Rxe1+ {[%clk 0:00:20.1]} 36... Kf8 {[%clk 0:00:17.9]} 37. Qe6
{[%clk 0:00:16.8]} 37... Qxb5 {[%clk 0:00:15.4]} 38. Rg1 {[%clk 0:00:13.3]}
38... Rf1+ {[%clk 0:00:13.6]} 0-1

[Event "*** SCC Grand Prix: Titled Tuesday Blitz"]
[Site "Chess.com"]
[Date "2020.06.23"]
[Round "2"]
[White "GOGIEFF"]
[Black "Arman_Hakemi"]
[Result "1/2-1/2"]
[WhiteElo "2887"]
[BlackElo "2575"]
[TimeControl "180+1"]
[EndTime "10:18:34 PDT"]
[Termination "Game drawn by repetition"]

1. d4 {[%clk 0:03:00.9]} 1... Nf6 {[%clk 0:02:58.4]} 2. c4 {[%clk 0:03:00.2]}
2... e6 {[%clk 0:02:58.7]} 3. Nc3 {[%clk 0:02:59.8]} 3... Bb4 {[%clk 0:02:58.5]}
4. e3 {[%clk 0:03:00.2]} 4... O-O {[%clk 0:02:57.8]} 5. Bd3 {[%clk 0:03:00.2]}
5... d5 {[%clk 0:02:57.8]} 6. Nf3 {[%clk 0:03:00.3]} 6... c5 {[%clk 0:02:57.4]}
7. O-O {[%clk 0:03:00.3]} 7... Nc6 {[%clk 0:02:57.2]} 8. a3 {[%clk 0:02:59.8]}
8... Bxc3 {[%clk 0:02:55]} 9. bxc3 {[%clk 0:03:00.7]} 9... dxc4 {[%clk 0:02:54]}
10. Bxc4 {[%clk 0:03:00.2]} 10... b6 {[%clk 0:02:52.9]} 11. Bb2 {[%clk
0:02:56.1]} 11... Bb7 {[%clk 0:02:53]} 12. Bd3 {[%clk 0:02:54]} 12... Qc7 {[%clk
0:02:46.2]} 13. e4 {[%clk 0:02:51.6]} 13... Rad8 {[%clk 0:02:44.4]} 14. Qe2
{[%clk 0:02:49.1]} 14... Ne7 {[%clk 0:02:34.6]} 15. Rad1 {[%clk 0:02:41.9]}
15... Ng6 {[%clk 0:02:28.2]} 16. g3 {[%clk 0:02:40.2]} 16... Rc8 {[%clk
0:02:04.1]} 17. h4 {[%clk 0:02:37.9]} 17... Rfd8 {[%clk 0:02:00.2]} 18. Rfe1
{[%clk 0:02:32.2]} 18... e5 {[%clk 0:01:55.5]} 19. d5 {[%clk 0:02:12.1]} 19...
Ne8 {[%clk 0:01:55.7]} 20. c4 {[%clk 0:02:11.1]} 20... f6 {[%clk 0:01:54.2]} 21.
h5 {[%clk 0:02:10.6]} 21... Nf8 {[%clk 0:01:54.4]} 22. h6 {[%clk 0:02:10.7]}
22... g6 {[%clk 0:01:54.9]} 23. Nh2 {[%clk 0:02:08.6]} 23... Nd6 {[%clk
0:01:54.9]} 24. Ng4 {[%clk 0:02:06.7]} 24... Qe7 {[%clk 0:01:46.6]} 25. f4
{[%clk 0:01:59]} 25... Nf7 {[%clk 0:01:42.7]} 26. Rf1 {[%clk 0:01:50.9]} 26...
Nd7 {[%clk 0:01:38]} 27. Rf3 {[%clk 0:01:44.5]} 27... Rf8 {[%clk 0:01:13.4]} 28.
Rdf1 {[%clk 0:01:42.6]} 28... Nd6 {[%clk 0:01:13.7]} 29. R1f2 {[%clk 0:01:23]}
29... Rf7 {[%clk 0:01:02]} 30. a4 {[%clk 0:01:14.2]} 30... Rcf8 {[%clk
0:00:59.8]} 31. Bc3 {[%clk 0:01:09.6]} 31... Ba6 {[%clk 0:00:43.4]} 32. a5
{[%clk 0:01:08.7]} 32... bxa5 {[%clk 0:00:43.7]} 33. Qa2 {[%clk 0:00:59.8]}
33... exf4 {[%clk 0:00:30.6]} 34. Rxf4 {[%clk 0:00:54.3]} 34... Ne5 {[%clk
0:00:22.5]} 35. Bxe5 {[%clk 0:00:37.5]} 35... fxe5 {[%clk 0:00:21.6]} 36. Rxf7
{[%clk 0:00:38]} 36... Rxf7 {[%clk 0:00:21.5]} 37. Rxf7 {[%clk 0:00:37.4]} 37...
Nxf7 {[%clk 0:00:21.2]} 38. Qxa5 {[%clk 0:00:36.1]} 38... Bc8 {[%clk 0:00:21.3]}
39. Be2 {[%clk 0:00:22.1]} 39... Bxg4 {[%clk 0:00:20.7]} 40. Bxg4 {[%clk
0:00:21.5]} 40... Qg5 {[%clk 0:00:21.3]} 41. Be6 {[%clk 0:00:20.5]} 41... Qxg3+
{[%clk 0:00:21.3]} 42. Kf1 {[%clk 0:00:21]} 42... Qf3+ {[%clk 0:00:21.8]} 43.
Kg1 {[%clk 0:00:21.3]} 43... Qg3+ {[%clk 0:00:22.1]} 44. Kf1 {[%clk 0:00:21.6]}
44... Qf3+ {[%clk 0:00:22.6]} 45. Kg1 {[%clk 0:00:22.1]} 45... Qg3+ {[%clk
0:00:23.2]} 1/2-1/2

[Event "*** SCC Grand Prix: Titled Tuesday Blitz"]
[Site "Chess.com"]
[Date "2020.06.23"]
[Round "2"]
[White "GMTalks_Youtube"]
[Black "elohunter1999"]
[Result "1-0"]
[WhiteElo "2688"]
[BlackElo "2465"]
[TimeControl "180+1"]
[EndTime "10:18:35 PDT"]
[Termination "GMTalks_Youtube won on time"]

1. e4 {[%clk 0:03:00.9]} 1... c5 {[%clk 0:02:56]} 2. Nf3 {[%clk 0:03:00.5]} 2...
d6 {[%clk 0:02:55.9]} 3. d4 {[%clk 0:02:59.9]} 3... cxd4 {[%clk 0:02:56.8]} 4.
Nxd4 {[%clk 0:03:00.4]} 4... Nf6 {[%clk 0:02:57.4]} 5. Nc3 {[%clk 0:03:00.8]}
5... Nc6 {[%clk 0:02:57.4]} 6. g3 {[%clk 0:02:58.9]} 6... Nxd4 {[%clk
0:02:47.2]} 7. Qxd4 {[%clk 0:02:58.4]} 7... g6 {[%clk 0:02:48.1]} 8. Bg2 {[%clk
0:02:52.4]} 8... Bg7 {[%clk 0:02:48.1]} 9. O-O {[%clk 0:02:49.9]} 9... O-O
{[%clk 0:02:47.5]} 10. Qb4 {[%clk 0:02:50]} 10... a5 {[%clk 0:02:27.7]} 11. Qb3
{[%clk 0:02:44.7]} 11... Be6 {[%clk 0:02:17]} 12. Nd5 {[%clk 0:02:42.9]} 12...
a4 {[%clk 0:01:56]} 13. Qxb7 {[%clk 0:02:40.2]} 13... Bxd5 {[%clk 0:01:55.2]}
14. exd5 {[%clk 0:02:38.5]} 14... Qa5 {[%clk 0:01:49.9]} 15. Qxe7 {[%clk
0:02:29.9]} 15... a3 {[%clk 0:01:36.8]} 16. Rb1 {[%clk 0:02:26.8]} 16... Nxd5
{[%clk 0:01:31.3]} 17. Qxd6 {[%clk 0:02:23.2]} 17... Rfd8 {[%clk 0:01:25.6]} 18.
Qxa3 {[%clk 0:02:19.8]} 18... Qxa3 {[%clk 0:01:22.3]} 19. bxa3 {[%clk
0:02:19.4]} 19... Rac8 {[%clk 0:01:10.5]} 20. Bg5 {[%clk 0:02:12.8]} 20... f6
{[%clk 0:01:07]} 21. Rbd1 {[%clk 0:01:50.4]} 21... Nc3 {[%clk 0:01:06.3]} 22.
Rxd8+ {[%clk 0:01:48]} 22... Rxd8 {[%clk 0:01:07.2]} 23. Be3 {[%clk 0:01:45.1]}
23... Bf8 {[%clk 0:01:06.2]} 24. a4 {[%clk 0:01:30.8]} 24... Nxa4 {[%clk
0:00:58.8]} 25. h4 {[%clk 0:01:26.8]} 25... Nc3 {[%clk 0:00:56.7]} 26. a4 {[%clk
0:01:20.9]} 26... Nxa4 {[%clk 0:00:55.2]} 27. Ra1 {[%clk 0:01:19]} 27... Nc3
{[%clk 0:00:48.5]} 28. Ra7 {[%clk 0:01:15.8]} 28... Nb5 {[%clk 0:00:36.1]} 29.
Rb7 {[%clk 0:01:09.8]} 29... Nd4 {[%clk 0:00:35.4]} 30. c4 {[%clk 0:01:07.3]}
30... Nf5 {[%clk 0:00:26.6]} 31. Bd5+ {[%clk 0:01:01.5]} 31... Kh8 {[%clk
0:00:26.1]} 32. Bb6 {[%clk 0:01:02]} 32... Re8 {[%clk 0:00:21.6]} 33. h5 {[%clk
0:00:56.1]} 33... gxh5 {[%clk 0:00:16.9]} 34. Kg2 {[%clk 0:00:45.3]} 34... h4
{[%clk 0:00:17]} 35. g4 {[%clk 0:00:44.3]} 35... Nd6 {[%clk 0:00:17.1]} 36. Rd7
{[%clk 0:00:40.5]} 36... Ne4 {[%clk 0:00:12]} 37. Bd4 {[%clk 0:00:36.7]} 37...
h6 {[%clk 0:00:02.1]} 38. Bf7 {[%clk 0:00:25.1]} 38... Rc8 {[%clk 0:00:01.2]}
39. Bg6 {[%clk 0:00:23.8]} 1-0